fUSD/lending_fUSD_20260625
["ID","MTS","AMOUNT","RATE_DAILY","PERIOD"]
[426444914,1782399942000,-5000.0,0.00013813,2]
[426444915,1782399943000,-5000.0,0.00013813,2]
[426444916,1782399944000,-5000.0,0.00013813,2]
[426444917,1782399945000,-5000.0,0.00013813,2]
[426444918,1782399964000,236.25,0.00031506,120]
[426444920,1782399965000,236.25,0.00031506,120]
[426444919,1782399965000,236.25,0.00031506,120]
[426444921,1782399966000,236.25,0.00031506,120]
[426444932,1782400004000,-288.28387346,0.00013812,2]
[426444930,1782400004000,-500.0,0.00013812,2]
[426444924,1782400004000,-267.41859826,0.00013812,2]
[426444927,1782400004000,-500.0,0.00013812,2]
[426444926,1782400004000,-150.0,0.00013812,2]
[426444929,1782400004000,-500.0,0.00013812,2]
[426444928,1782400004000,-500.0,0.00013812,2]
[426444923,1782400004000,-500.0,0.00013812,2]
[426444925,1782400004000,-371.29752828,0.00013812,2]
[426444931,1782400004000,-500.0,0.00013812,2]
[426444935,1782400156000,-2688.12336969,0.00013713,2]
[426444936,1782400156000,-2311.87663031,0.00013713,2]
[426444937,1782400157000,-770.32267421,0.00013713,2]
[426444939,1782400157000,-537.19301878,0.00013812,2]
[426444940,1782400157000,-150.0,0.00013812,2]
[426444941,1782400157000,-500.0,0.00013812,2]
[426444943,1782400157000,-500.0,0.00013812,2]
[426444938,1782400157000,-200.0,0.000138,5]
[426444944,1782400157000,-500.0,0.00013812,2]
[426444945,1782400157000,-500.0,0.00013812,2]
[426444946,1782400157000,-640.42095269,0.00013812,2]
[426444947,1782400157000,-202.06335432,0.00013812,2]
[426444942,1782400157000,-500.0,0.00013812,2]
[426444948,1782400157000,-5000.0,0.00013713,2]
[426444949,1782400159000,-5000.0,0.00013713,2]
[426444951,1782400160000,-5000.0,0.00013713,2]
[426444950,1782400160000,-5000.0,0.00013713,2]
[426444953,1782400161000,-297.93664568,0.00013812,2]
[426444952,1782400161000,-1190.9837365,0.00013713,2]
[426444954,1782400161000,-500.0,0.00013812,2]
[426444956,1782400161000,-500.0,0.00013812,2]
[426444957,1782400161000,-500.0,0.00013812,2]
[426444958,1782400161000,-500.0,0.00013812,2]
[426444955,1782400161000,-500.0,0.00013812,2]
[426444959,1782400162000,-500.0,0.00013812,2]
[426444960,1782400162000,-500.0,0.00013812,2]
[426444961,1782400162000,-11.07961782,0.00013812,2]
[426444962,1782400162000,-488.92038218,0.00013812,2]
[426444965,1782400162000,-500.0,0.00013812,2]
[426444964,1782400162000,-500.0,0.00013812,2]
[426444966,1782400162000,-500.0,0.00013812,2]
[426444969,1782400162000,-500.0,0.00013812,2]
[426444967,1782400162000,-500.0,0.00013812,2]
[426444968,1782400162000,-500.0,0.00013812,2]
[426444963,1782400162000,-500.0,0.00013812,2]
[426444970,1782400163000,-500.0,0.00013812,2]
[426444972,1782400163000,-11.07961782,0.00013812,2]
[426444973,1782400163000,-488.92038218,0.00013812,2]
[426444971,1782400163000,-500.0,0.00013812,2]
[426444975,1782400163000,-500.0,0.00013812,2]
[426444977,1782400163000,-500.0,0.00013812,2]
[426444976,1782400163000,-500.0,0.00013812,2]
[426444974,1782400163000,-500.0,0.00013812,2]
[426444981,1782400164000,-5000.0,0.00013813,2]
[426444980,1782400164000,-1511.07961782,0.00013813,2]
[426444979,1782400164000,-500.0,0.00013812,2]
[426444978,1782400164000,-500.0,0.00013812,2]
[426444983,1782400178000,-3428.69409322,0.00013813,2]
[426444985,1782400178000,-3428.69409322,0.00013813,2]
[426444984,1782400178000,-812.22511737,0.00013813,2]
[426444992,1782400225000,-2490.09173021,0.00013813,2]
[426444991,1782400225000,-250.0,0.00013812,2]
[426444990,1782400225000,-500.0,0.00013812,2]
[426444989,1782400225000,-500.0,0.00013812,2]
[426444987,1782400225000,-500.0,0.00013812,2]
[426444988,1782400225000,-500.0,0.00013812,2]
[426444986,1782400225000,-259.90826979,0.00013812,2]
[426444993,1782400226000,-5000.0,0.00013813,2]
[426444994,1782400227000,-5000.0,0.00013813,2]
[426444996,1782400228000,-4809.06231777,0.00013813,2]
[426444995,1782400228000,-190.93768223,0.00013803,2]
[426444998,1782400232000,-431.72491626,0.00013813,2]
[426444999,1782400232000,-107812.43645577,0.00013813,2]
[426445003,1782400232000,-5032.08514418,0.00013813,2]
[426445001,1782400232000,-361.68472692,0.00013813,2]
[426445000,1782400232000,-1049.24108504,0.00013813,2]
[426445002,1782400232000,-474.20905484,0.00013813,2]
[426445009,1782400233000,-688.86301301,0.00013813,2]
[426445007,1782400233000,-1563.25455883,0.00013813,2]
[426445008,1782400233000,-2490.57914543,0.00013813,2]
[426445005,1782400233000,-1296.66477383,0.00013813,2]
[426445006,1782400233000,-825.9788068,0.00013813,2]
[426445004,1782400233000,-9297.86373078,0.00013813,2]
[426445047,1782400238000,-18.11440557,0.00013813,2]
[426445037,1782400238000,-1817.21,0.00013813,2]
[426445036,1782400238000,-3486.72775957,0.00013813,2]
[426445035,1782400238000,-783.81493086,0.00013813,2]
[426445247,1782400240000,-2249.23280545,0.00013813,2]
[426445284,1782400240000,-470.94,0.00013813,2]
[426445291,1782400240000,-1779.51,0.00013813,2]
[426445255,1782400240000,-24697.06128518,0.00013813,2]
[426445298,1782400241000,-1407.52319047,0.00013813,2]
[426445323,1782400243000,-9823.71904475,0.00013813,2]
[426445322,1782400243000,-2212.376312,0.00013813,2]
[426445318,1782400243000,-600.0,0.00013813,2]
[426445320,1782400243000,-2762.62021606,0.00013813,2]
[426445321,1782400243000,-1481.50608466,0.00013813,2]
[426445319,1782400243000,-568.73118344,0.00013813,2]
[426445324,1782400243000,-2922.2972516,0.00013813,2]
[426445335,1782400243000,-55802.83860874,0.00013813,2]
[426445327,1782400243000,-8235.65337772,0.00013813,2]
[426445326,1782400243000,-1409.57814965,0.00013813,2]
[426445332,1782400243000,-523.46241767,0.00013813,2]
[426445331,1782400243000,-47368.36152889,0.00013813,2]
[426445333,1782400243000,-1952.18953704,0.00013813,2]
[426445336,1782400243000,-320.89943504,0.00013813,2]
[426445325,1782400243000,-1748.17389532,0.00013813,2]
[426445334,1782400243000,-2827.37374582,0.00013813,2]
[426445350,1782400246000,-21172.1906984,0.00013813,2]
[426445351,1782400246000,-1400.0,0.00013813,2]
[426445349,1782400246000,-2358.72714298,0.00013813,2]
[426445354,1782400247000,-4687.75324602,0.00013813,2]
[426445355,1782400247000,-375730.15461397,0.00013813,2]
[426445541,1782400297000,-6985.3986,0.00013813,2]
[426445540,1782400297000,-600.0,0.00013763,2]
[426445539,1782400297000,-2164.6014,0.00013713,2]
[426445543,1782400736000,1008.27195249,0.000315,120]
[426445544,1782400752000,-199.03,0.00013015,2]
[426445550,1782401310000,548.75,0.00031506,120]
[426445552,1782401311000,548.75,0.00031506,120]
[426445551,1782401311000,548.75,0.00031506,120]
[426445553,1782401312000,548.75,0.00031506,120]
[426445554,1782401349000,297.34551504,0.00012794,2]
[426445557,1782401379000,-1656.81,0.00013196,2]
[426445558,1782401379000,-436.66,0.000133,2]
[426445555,1782401379000,-338.63448496,0.00012794,2]
[426445556,1782401379000,-189.46,0.0001282,2]
[426445559,1782401379000,-2378.43551504,0.00013413,2]
[426445561,1782401380000,-174.91,0.00013437,2]
[426445560,1782401380000,-40.87551769,0.00013413,2]
[426445563,1782401380000,-500.0,0.00013512,2]
[426445562,1782401380000,-500.0,0.00013512,2]
[426445566,1782401380000,-399.33864386,0.00013512,2]
[426445564,1782401380000,-500.0,0.00013512,2]
[426445567,1782401380000,-500.0,0.00013512,2]
[426445568,1782401380000,-1884.87583845,0.00013513,2]
[426445569,1782401380000,-5000.0,0.00013513,2]
[426445565,1782401380000,-500.0,0.00013512,2]
[426445570,1782401381000,-5000.0,0.00013513,2]
[426445571,1782401382000,-5000.0,0.00013513,2]
[426445572,1782401383000,-5000.0,0.00013513,2]
[426445573,1782401384000,-5000.0,0.00013513,2]
[426445574,1782401385000,-5000.0,0.00013513,2]
[426445575,1782401386000,-5000.0,0.00013513,2]
[426445576,1782401387000,-5000.0,0.00013513,2]
[426445581,1782401432000,-16096.50448459,0.00013513,2]
[426445580,1782401432000,-216.45114417,0.000132,2]
[426445582,1782401432000,-4413.0331,0.00013513,2]
[426445584,1782401432000,-548.73,0.00013513,2]
[426445586,1782401432000,-356.28377495,0.00013513,2]
[426445583,1782401432000,-955.88505399,0.00013513,2]
[426445592,1782401438000,-2500.0,0.00013513,2]
[426445591,1782401438000,-152.65112834,0.00013513,2]
[426445590,1782401438000,-87231.34334802,0.00013513,2]
[426445594,1782401439000,-2696.92439142,0.00013535,2]
[426445596,1782401439000,-19283.72107851,0.00013535,2]
[426445593,1782401439000,-250.0,0.00013524,2]
[426445598,1782401439000,-1273.471,0.00013537,2]
[426445599,1782401439000,-158.891,0.00013537,2]
[426445603,1782401439000,-160.0,0.0001355,2]
[426445605,1782401439000,-190.93768224,0.00013603,2]
[426445607,1782401439000,-1000.0,0.00013612,2]
[426445609,1782401439000,-1195664.01799781,0.00013613,2]
[426445601,1782401439000,-295.88277909,0.00013549,2]
[426445788,1782401441000,-2950.0,0.00013613,2]
[426445787,1782401441000,-12477.17718533,0.00013613,2]
[426445786,1782401441000,-84487.25151891,0.00013613,2]
[426445789,1782401442000,-1185.58961994,0.00013613,2]
[426445845,1782401443000,-23096.536476,0.00013613,2]
[426445843,1782401443000,-1460.22448843,0.00013613,2]
[426445846,1782401443000,-337.56593462,0.00013613,2]
[426445941,1782401446000,-412.08957102,0.00013613,2]
[426445940,1782401446000,-3518.73913784,0.00013613,2]
[426445939,1782401446000,-455.24162395,0.00013613,2]
[426445938,1782401446000,-2054.07008403,0.00013613,2]
[426445943,1782401447000,-14088.57224114,0.00013613,2]
[426445942,1782401447000,-1314.12,0.00013613,2]
[426445946,1782401447000,-4419.01612462,0.00013613,2]
[426445947,1782401447000,-29500.0,0.00013613,2]
[426445945,1782401447000,-1772.2922684,0.00013613,2]
[426445944,1782401447000,-2064.3527658,0.00013613,2]
[426445964,1782401549000,-168.628321,0.00012498,2]
[426445961,1782401549000,-151.0,0.00012498,2]
[426445962,1782401549000,-151.0,0.00012498,2]
[426445960,1782401549000,-223.4,0.000119,2]
[426445963,1782401549000,-151.0,0.00012498,2]
[426445965,1782401549000,-166.66,0.00012762,2]
[426445968,1782401549000,-150.0,0.00013169,2]
[426445967,1782401549000,-1582.297144,0.00013133,2]
[426445969,1782401549000,-172.26748682,0.000132,2]
[426445966,1782401549000,-166.66,0.00013031,2]
[426445970,1782401549000,-2900.08704818,0.00013228,2]
[426445971,1782401554000,500.000001,0.00031507,120]
[426445982,1782402573000,-373.89916906,0.00012012,2]
[426445981,1782402573000,-1000.0,0.00012012,2]
[426445980,1782402573000,-166.66,0.00012012,2]
[426446012,1782402631000,-150.0,0.00012659,2]
[426446008,1782402631000,-166.66,0.00012517,2]
[426446001,1782402631000,-166.66,0.00012265,2]
[426446000,1782402631000,-199.5,0.00012138,2]
[426446004,1782402631000,-3419.98,0.00012468,2]
[426446005,1782402631000,-190.95,0.00012468,2]
[426446006,1782402631000,-195.94,0.00012493,2]
[426446007,1782402631000,-167.15,0.00012499,2]
[426446010,1782402631000,-1056.04,0.00012607,2]
[426446011,1782402631000,-150.0,0.00012617,2]
[426446003,1782402631000,-3666.26,0.00012461,2]
[426445999,1782402631000,-1000.0,0.00012012,2]
[426445994,1782402631000,-1000.0,0.00012012,2]
[426445993,1782402631000,-1000.0,0.00012012,2]
[426445995,1782402631000,-1000.0,0.00012012,2]
[426445992,1782402631000,-1000.0,0.00012012,2]
[426445997,1782402631000,-1000.0,0.00012012,2]
[426445991,1782402631000,-1000.0,0.00012012,2]
[426445998,1782402631000,-1000.0,0.00012012,2]
[426445989,1782402631000,-1000.0,0.00012012,2]
[426445990,1782402631000,-1000.0,0.00012012,2]
[426445988,1782402631000,-1000.0,0.00012012,2]
[426445987,1782402631000,-1000.0,0.00012012,2]
[426445986,1782402631000,-626.10083094,0.00012012,2]
[426445996,1782402631000,-1000.0,0.00012012,2]
[426446013,1782402631000,-3540.56,0.00012664,2]
[426446009,1782402631000,-150.0,0.00012571,2]
[426446017,1782402631000,-150.0,0.00012742,2]
[426446014,1782402631000,-2000.0,0.00012689,2]
[426446043,1782402631000,-250.0,0.00013213,2]
[426446042,1782402631000,-500.0,0.000132,2]
[426446041,1782402631000,-1174.78,0.000132,2]
[426446036,1782402631000,-168.24,0.00012916,2]
[426446040,1782402631000,-3419.98,0.00013092,2]
[426446038,1782402631000,-1000.0,0.00013014,2]
[426446039,1782402631000,-166.66,0.00013023,2]
[426446037,1782402631000,-250.0,0.00013,2]
[426446033,1782402631000,-163.63,0.00012842,2]
[426446035,1782402631000,-205.0,0.00012867,2]
[426446023,1782402631000,-152.0,0.0001277,2]
[426446026,1782402631000,-152.0,0.0001277,2]
[426446029,1782402631000,-157.86015524,0.0001277,2]
[426446002,1782402631000,-20427.5,0.00012383,2]
[426446027,1782402631000,-152.0,0.0001277,2]
[426446015,1782402631000,-6486.17,0.00012716,2]
[426446020,1782402631000,-152.0,0.0001277,2]
[426446016,1782402631000,-6911.64,0.00012731,2]
[426446018,1782402631000,-150.0,0.00012767,2]
[426446021,1782402631000,-152.0,0.0001277,2]
[426446019,1782402631000,-1000.0,0.00012769,2]
[426446028,1782402631000,-152.0,0.0001277,2]
[426446030,1782402631000,-166.66,0.0001277,2]
[426446031,1782402631000,-3419.98,0.0001278,2]
[426446032,1782402631000,-3352.39,0.00012784,2]
[426446025,1782402631000,-152.0,0.0001277,2]
[426446022,1782402631000,-152.0,0.0001277,2]
[426446078,1782402632000,-500.0,0.00013698,2]
[426446085,1782402632000,-500.0,0.00013698,2]
[426446080,1782402632000,-500.0,0.00013698,2]
[426446083,1782402632000,-500.0,0.00013698,2]
[426446084,1782402632000,-500.0,0.00013698,2]
[426446086,1782402632000,-500.0,0.00013698,2]
[426446077,1782402632000,-500.0,0.00013698,2]
[426446081,1782402632000,-500.0,0.00013698,2]
[426446079,1782402632000,-500.0,0.00013698,2]
[426446075,1782402632000,-500.0,0.00013698,2]
[426446087,1782402632000,-500.0,0.00013698,2]
[426446082,1782402632000,-500.0,0.00013698,2]
[426446097,1782402632000,-718.66,0.00013698,2]
[426446092,1782402632000,-500.0,0.00013698,2]
[426446088,1782402632000,-500.0,0.00013698,2]
[426446089,1782402632000,-500.0,0.00013698,2]
[426446090,1782402632000,-500.0,0.00013698,2]
[426446091,1782402632000,-500.0,0.00013698,2]
[426446074,1782402632000,-500.0,0.00013698,2]
[426446094,1782402632000,-500.0,0.00013698,2]
[426446093,1782402632000,-500.0,0.00013698,2]
[426446096,1782402632000,-718.66,0.00013698,2]
[426446095,1782402632000,-718.66,0.00013698,2]
[426446100,1782402632000,-718.66,0.00013698,2]
[426446105,1782402632000,-500.0,0.00013698,2]
[426446107,1782402632000,-500.0,0.00013698,2]
[426446098,1782402632000,-718.66,0.00013698,2]
[426446076,1782402632000,-500.0,0.00013698,2]
[426446069,1782402632000,-500.0,0.00013698,2]
[426446072,1782402632000,-500.0,0.00013698,2]
[426446047,1782402632000,-922.31,0.00013294,2]
[426446044,1782402632000,-250.0,0.00013213,2]
[426446046,1782402632000,-166.66,0.00013276,2]
[426446045,1782402632000,-216.45114417,0.00013244,2]
[426446048,1782402632000,-3419.98,0.00013403,2]
[426446049,1782402632000,-500.0,0.00013474,2]
[426446051,1782402632000,-19683.9575,0.00013513,2]
[426446053,1782402632000,-708.01350991,0.00013591,2]
[426446052,1782402632000,-184.63828196,0.00013545,2]
[426446060,1782402632000,-504.82907891,0.00013698,2]
[426446050,1782402632000,-1085.43088771,0.00013512,2]
[426446057,1782402632000,-1001.6874,0.00013616,2]
[426446055,1782402632000,-500.0,0.00013599,2]
[426446070,1782402632000,-500.0,0.00013698,2]
[426446058,1782402632000,-422.88633865,0.00013688,2]
[426446056,1782402632000,-422.88633865,0.00013613,2]
[426446054,1782402632000,-8995.90069065,0.00013598,2]
[426446061,1782402632000,-500.0,0.00013698,2]
[426446063,1782402632000,-500.0,0.00013698,2]
[426446065,1782402632000,-573.64226802,0.00013698,2]
[426446066,1782402632000,-509.76320074,0.00013698,2]
[426446068,1782402632000,-500.0,0.00013698,2]
[426446073,1782402632000,-500.0,0.00013698,2]
[426446067,1782402632000,-500.0,0.00013698,2]
[426446062,1782402632000,-500.0,0.00013698,2]
[426446109,1782402632000,-500.0,0.00013698,2]
[426446064,1782402632000,-500.0,0.00013698,2]
[426446071,1782402632000,-500.0,0.00013698,2]
[426446059,1782402632000,-500.0,0.00013698,2]
[426446111,1782402632000,-500.0,0.00013698,2]
[426446102,1782402632000,-718.66,0.00013698,2]
[426446119,1782402632000,-500.0,0.00013698,2]
[426446158,1782402632000,-8271.56,0.00014504,2]
[426446153,1782402632000,-500.0,0.00014504,2]
[426446157,1782402632000,-9999.99,0.00014504,2]
[426446155,1782402632000,-500.0,0.00014504,2]
[426446150,1782402632000,-350.0,0.00014158,2]
[426446156,1782402632000,-1857.77,0.00014504,2]
[426446149,1782402632000,-1990.0,0.000141,2]
[426446114,1782402632000,-500.0,0.00013698,2]
[426446160,1782402632000,-22217.0,0.00014504,2]
[426446159,1782402632000,-8064.52,0.00014504,2]
[426446161,1782402632000,-8835.65,0.00014504,2]
[426446163,1782402632000,-700.0,0.0001459,2]
[426446170,1782402632000,-1772.38982033,0.000149,2]
[426446162,1782402632000,-500.0,0.0001457,2]
[426446164,1782402632000,-350.0,0.00014711,2]
[426446165,1782402632000,-200.0,0.000148,5]
[426446168,1782402632000,-500.0,0.00014899,2]
[426446169,1782402632000,-500.0,0.00014899,2]
[426446166,1782402632000,-517.08720398,0.00014844,2]
[426446167,1782402632000,-500.0,0.00014899,2]
[426446171,1782402632000,-817.372727,0.000149,2]
[426446172,1782402632000,-2110.1634324,0.000149,2]
[426446173,1782402632000,-400.0,0.000149,5]
[426446175,1782402632000,-1346.53928604,0.000149,2]
[426446174,1782402632000,-20453.20130597,0.000149,2]
[426446177,1782402632000,-163.63,0.00014983,2]
[426446176,1782402632000,-922.31,0.00014955,2]
[426446152,1782402632000,-500.0,0.00014296,2]
[426446148,1782402632000,-160.0,0.0001408,2]
[426446151,1782402632000,-2000.0,0.00014275,2]
[426446147,1782402632000,-500.0,0.00014022,2]
[426446121,1782402632000,-500.0,0.00013698,2]
[426446116,1782402632000,-500.0,0.00013698,2]
[426446122,1782402632000,-200.0,0.00013699,2]
[426446154,1782402632000,-907.89,0.00014504,2]
[426446126,1782402632000,-1116.85397065,0.00013699,15]
[426446123,1782402632000,-1000.0,0.00013699,2]
[426446130,1782402632000,-1000.0,0.00013762,2]
[426446128,1782402632000,-350.0,0.00013743,2]
[426446125,1782402632000,-1000.0,0.00013699,15]
[426446132,1782402632000,-422.88633865,0.00013838,2]
[426446129,1782402632000,-500.0,0.00013748,2]
[426446127,1782402632000,-3419.98,0.00013715,2]
[426446131,1782402632000,-422.88633865,0.00013763,2]
[426446124,1782402632000,-1000.0,0.00013699,2]
[426446135,1782402632000,-151.0,0.00013913,2]
[426446133,1782402632000,-255.0,0.00013865,2]
[426446143,1782402632000,-422.88633865,0.00013913,2]
[426446142,1782402632000,-500.0,0.00013913,2]
[426446136,1782402632000,-331.18291848,0.00013913,2]
[426446137,1782402632000,-500.0,0.00013913,2]
[426446139,1782402632000,-500.0,0.00013913,2]
[426446120,1782402632000,-500.0,0.00013698,2]
[426446138,1782402632000,-503.44436268,0.00013913,2]
[426446140,1782402632000,-718.66,0.00013913,2]
[426446134,1782402632000,-341.51607349,0.00013912,2]
[426446146,1782402632000,-250.0,0.00014,2]
[426446145,1782402632000,-21204.57416659,0.0001399,2]
[426446144,1782402632000,-168.24,0.00013982,2]
[426446141,1782402632000,-500.0,0.00013913,2]
[426446195,1782402633000,-500.0,0.00014999,2]
[426446191,1782402633000,-718.66,0.00014999,2]
[426446192,1782402633000,-718.66,0.00014999,2]
[426446189,1782402633000,-718.66,0.00014999,2]
[426446188,1782402633000,-279.69657645,0.00014999,2]
[426446193,1782402633000,-500.0,0.00014999,2]
[426446190,1782402633000,-718.66,0.00014999,2]
[426446187,1782402633000,-500.0,0.00014999,2]
[426446194,1782402633000,-500.0,0.00014999,2]
[426446185,1782402633000,-500.0,0.00014999,2]
[426446183,1782402633000,-185.7905317,0.00014999,2]
[426446184,1782402633000,-500.0,0.00014999,2]
[426446179,1782402633000,-500.0,0.00014999,2]
[426446181,1782402633000,-500.0,0.00014999,2]
[426446178,1782402633000,-1055.24951299,0.0001499,2]
[426446182,1782402633000,-500.0,0.00014999,2]
[426446198,1782402633000,-907.89,0.00014999,2]
[426446186,1782402633000,-500.0,0.00014999,2]
[426446180,1782402633000,-500.0,0.00014999,2]
[426446199,1782402633000,-907.89,0.00014999,2]
[426446201,1782402633000,-500.0,0.00014999,2]
[426446212,1782402633000,-3611.31918063,0.00015,2]
[426446213,1782402633000,-3529.90578143,0.00015,2]
[426446215,1782402633000,-840.6561575,0.00015,2]
[426446214,1782402633000,-4147.99,0.00015,2]
[426446211,1782402633000,-203411.22165118,0.00015,2]
[426446210,1782402633000,-200.0,0.00015,2]
[426446209,1782402633000,-500.0,0.00014999,2]
[426446216,1782402633000,-1267.11995351,0.00015,2]
[426446207,1782402633000,-500.0,0.00014999,2]
[426446206,1782402633000,-500.0,0.00014999,2]
[426446196,1782402633000,-500.0,0.00014999,2]
[426446205,1782402633000,-500.0,0.00014999,2]
[426446204,1782402633000,-500.0,0.00014999,2]
[426446203,1782402633000,-579.85520138,0.00014999,2]
[426446202,1782402633000,-500.0,0.00014999,2]
[426446200,1782402633000,-907.89,0.00014999,2]
[426446208,1782402633000,-500.0,0.00014999,2]
[426446197,1782402633000,-907.89,0.00014999,2]
[426446224,1782402638000,-151.0,0.00014999,2]
[426446225,1782402638000,-356554.97783941,0.00015,2]
[426446223,1782402638000,-6717.44852876,0.00013643,2]
[426446388,1782402639000,-5266.78111499,0.00015,2]
[426446769,1782402642000,-278.2127001,0.00015,2]
[426446757,1782402642000,-963.31990578,0.00015,2]
[426446886,1782402645000,-23954.03072506,0.00015,2]
[426446884,1782402645000,-368061.49806672,0.00015,2]
[426446938,1782402646000,-6486.17,0.00017802,2]
[426446936,1782402646000,-1979.0,0.00017509,5]
[426446937,1782402646000,-20453.20130589,0.00017522,2]
[426446933,1782402646000,-1346.53928604,0.000174,2]
[426446935,1782402646000,-1963.0,0.00017509,5]
[426446932,1782402646000,-151.0,0.00017332,2]
[426446930,1782402646000,-151.0,0.00017332,2]
[426446941,1782402646000,-207.34,0.00018,2]
[426446942,1782402646000,-2500.0,0.000182,2]
[426446940,1782402646000,-1968.0,0.00017972,5]
[426446939,1782402646000,-2110.16343237,0.00017829,2]
[426446931,1782402646000,-151.0,0.00017332,2]
[426446934,1782402646000,-2000.0,0.00017447,2]
[426446943,1782402646000,-922.31,0.00018279,2]
[426446966,1782402646000,-383.0,0.00019512,2]
[426446944,1782402646000,-3581.9,0.00018312,2]
[426446952,1782402646000,-269.709242,0.00018833,2]
[426446946,1782402646000,-151.0,0.00018833,2]
[426446953,1782402646000,-20453.20130589,0.00018833,2]
[426446954,1782402646000,-157.0,0.00019,2]
[426446948,1782402646000,-151.0,0.00018833,2]
[426446947,1782402646000,-151.0,0.00018833,2]
[426446949,1782402646000,-269.709242,0.00018833,2]
[426446951,1782402646000,-269.709242,0.00018833,2]
[426446956,1782402646000,-151.0,0.00019178,2]
[426446967,1782402646000,-216.0,0.00019512,2]
[426446927,1782402646000,-163.63,0.00017123,2]
[426446955,1782402646000,-2000.0,0.00019033,2]
[426446945,1782402646000,-151.0,0.00018833,2]
[426446921,1782402646000,-151.0,0.00016438,2]
[426446914,1782402646000,-1380.0,0.00016,2]
[426446925,1782402646000,-2541.0,0.000169,2]
[426446892,1782402646000,-269.709242,0.00015,2]
[426446888,1782402646000,-151.0,0.00015,2]
[426446890,1782402646000,-269.709242,0.00015,2]
[426446896,1782402646000,-269.709242,0.00015,2]
[426446894,1782402646000,-269.709242,0.00015,2]
[426446898,1782402646000,-164.0,0.00015,2]
[426446900,1782402646000,-164.0,0.00015,2]
[426446902,1782402646000,-165.05700372,0.00015,2]
[426446908,1782402646000,-433.0,0.00015052,2]
[426446904,1782402646000,-153.918493,0.00015,2]
[426446906,1782402646000,-168.24,0.00015048,2]
[426446909,1782402646000,-6717.44852876,0.00015094,2]
[426446910,1782402646000,-151.0,0.00015154,2]
[426446918,1782402646000,-354.0,0.00016354,2]
[426446911,1782402646000,-151.0,0.00015154,2]
[426446913,1782402646000,-2000.0,0.00015861,2]
[426446915,1782402646000,-300.0,0.00016,2]
[426446958,1782402646000,-151.0,0.00019324,2]
[426446916,1782402646000,-20453.20130589,0.00016211,2]
[426446917,1782402646000,-1655.0,0.000163,2]
[426446919,1782402646000,-635.21,0.00016438,2]
[426446924,1782402646000,-170.07,0.00016711,2]
[426446928,1782402646000,-151.0,0.00017332,2]
[426446926,1782402646000,-3269.0,0.00017,2]
[426446923,1782402646000,-922.31,0.00016617,2]
[426446922,1782402646000,-151.0,0.00016438,2]
[426446929,1782402646000,-151.0,0.00017332,2]
[426446920,1782402646000,-151.0,0.00016438,2]
[426446912,1782402646000,-1500.0,0.000155,2]
[426446960,1782402646000,-151.0,0.00019474,2]
[426446950,1782402646000,-269.709242,0.00018833,2]
[426446959,1782402646000,-151.0,0.00019324,2]
[426447000,1782402646000,-151.0,0.00020786,2]
[426446998,1782402646000,-151.0,0.00020786,2]
[426447003,1782402646000,-151.0,0.00020786,2]
[426447001,1782402646000,-151.0,0.00020786,2]
[426446999,1782402646000,-151.0,0.00020786,2]
[426447004,1782402646000,-151.0,0.00020786,2]
[426447005,1782402646000,-151.0,0.00020786,2]